bitfinex-derivatives/quotes_ETHF0:USTF0_20250604
["timestamp","ask_amount","ask_price","bid_price","bid_amount"]
[1749017027132,1.21796162,2630.5,2630.4,26.318]
[1749017027340,1.21796162,2630.5,2630.4,27.07781]
[1749017028032,1.21796162,2630.5,2630.4,26.318]
[1749017029233,0.07531734,2630.5,2630.4,26.318]
[1749017029632,0.07531734,2630.5,2630.4,27.07781]
[1749017030333,1.21842033,2630.5,2630.4,27.07781]
[1749017030733,0.07531734,2630.5,2630.4,27.07781]
[1749017030928,1.21857246,2630.5,2630.4,27.07781]
[1749017031125,1.21857246,2630.5,2630.4,26.318]
[1749017031526,1.97835246,2630.5,2630.4,26.318]
[1749017031931,1.21857246,2630.5,2630.4,26.318]
[1749017032133,1.97835246,2630.5,2630.4,26.318]
[1749017032335,1.21857246,2630.5,2630.4,27.07781]
[1749017039135,1.2206355,2630.5,2630.4,27.07781]
[1749017040644,0.6478,2631.3,2630.5,1.89945]
[1749017040941,1.40737,2631.3,2631.0,3.96743]
[1749017041138,0.75958,2631.2,2631.1,4.464]
[1749017041942,0.75958,2631.2,2631.1,4.5506]
[1749017043145,0.6478,2631.3,2631.1,5.31019]
[1749017043342,0.75958,2631.2,2631.1,5.31019]
[1749017043846,0.75958,2631.2,2631.1,4.5506]
[1749017046139,0.6478,2631.3,2631.1,4.5506]
[1749017046339,1.40736,2631.3,2631.1,5.31019]
[1749017046540,1.40736,2631.3,2631.1,5.96969]
[1749017046740,0.6478,2631.3,2631.2,0.75958]
[1749017046940,1.40735,2631.3,2631.1,5.96969]
[1749017047447,0.6478,2631.3,2631.2,0.75958]
[1749017047947,0.6478,2631.3,2631.1,5.9697]
[1749017048243,0.6478,2631.3,2631.1,6.4789]
[1749017048647,1.40735,2631.3,2631.1,6.4789]
[1749017049246,0.75958,2631.2,2631.1,6.4789]
[1749017049641,0.6478,2631.3,2631.1,6.4789]
[1749017049947,1.40735,2631.3,2631.1,7.23849]
[1749017050343,1.40735,2631.3,2631.1,6.4789]
[1749017050847,1.36634,2631.4,2631.1,6.4789]
[1749017051047,1.36634,2631.4,2631.3,3.2078]
[1749017051255,0.6432,2631.6,2631.3,20.5428]
[1749017051548,0.7595,2631.5,2631.3,21.794]
[1749017051743,0.7595,2631.5,2631.4,0.6541]
[1749017052049,0.75952,2631.4,2631.3,4.46]
[1749017052247,0.75952,2631.4,2631.3,21.795]
[1749017052548,1.89657381,2631.4,2631.3,21.795]
[1749017053142,0.75958,2631.2,2631.1,4.5466]
[1749017053348,1.89663381,2631.2,2631.1,21.8806]
[1749017053543,1.89657597,2631.2,2631.1,21.8806]
[1749017053850,3.18847597,2631.2,2631.1,21.8806]
[1749017054536,3.1884379,2631.2,2631.1,0.0866]
[1749017054741,0.75972,2630.7,2630.6,21.79970765]
[1749017054942,1.8966779,2630.7,2630.6,21.79970765]
[1749017055643,1.8966779,2630.7,2630.6,4.46570765]
[1749017055843,1.8966779,2630.7,2630.6,21.79870765]
[1749017057445,1.89548245,2630.7,2630.6,21.79870765]
[1749017057850,1.89548245,2630.7,2630.6,21.79970765]
[1749017059854,1.96252847,2630.7,2630.6,21.79970765]
[1749017060558,1.96252847,2630.7,2630.6,4.46570765]
[1749017060747,0.75984,2630.3,2630.2,1.9562]
[1749017060952,0.75987,2630.2,2630.1,25.0018]
[1749017061265,2.52403245,2630.2,2630.1,25.0018]
[1749017061463,2.52402351,2630.2,2630.1,25.0018]
[1749017061751,1.38827,2630.2,2630.1,25.0018]
[1749017061952,2.52402518,2630.2,2630.1,25.0018]
[1749017062158,1.89562518,2630.2,2630.1,25.0018]
[1749017062547,1.13575518,2630.2,2630.1,27.07329]
[1749017062749,1.89562518,2630.2,2630.1,26.3134]
[1749017062952,1.13575518,2630.2,2630.1,27.07329]
[1749017063248,1.89562518,2630.2,2630.1,26.3134]
[1749017063452,1.13575518,2630.2,2630.1,26.3134]
[1749017063951,1.89562518,2630.2,2630.1,26.3134]
[1749017065352,0.75987,2630.2,2630.1,26.3134]
[1749017065754,1.89426985,2630.2,2630.1,26.3134]
[1749017066251,0.75987,2630.2,2630.1,26.3134]
[1749017066459,1.89383827,2630.2,2630.1,26.3134]
[1749017068352,1.13396827,2630.2,2630.1,26.3134]
[1749017068659,1.13396827,2630.2,2630.1,27.07329]
[1749017069252,0.00570765,2630.4,2630.1,26.3134]
[1749017069456,0.76552765,2630.4,2630.2,1.2168]
[1749017070057,0.75984,2630.3,2630.2,1.2168]
[1749017070258,0.76552765,2630.4,2630.2,1.2168]
[1749017070659,0.75984,2630.3,2630.2,1.2168]
[1749017071157,0.76553765,2630.4,2630.2,1.2168]
[1749017071460,0.76553765,2630.4,2630.3,17.335]
[1749017071857,1.89917008,2630.4,2630.3,17.335]
[1749017073565,1.89929961,2630.4,2630.3,17.335]
[1749017074065,0.75984,2630.3,2630.2,1.2168]
[1749017074257,1.89356117,2630.3,2630.2,18.5508]
[1749017075769,1.89351631,2630.3,2630.2,18.5508]
[1749017076058,0.75987,2630.2,2630.1,3.2078]
[1749017076363,1.89354631,2630.2,2630.1,25.0028]
[1749017077464,0.75987,2630.2,2630.1,25.0028]
[1749017077667,1.89361784,2630.2,2630.1,26.2644]
[1749017078961,1.13374784,2630.2,2630.1,26.2644]
[1749017079367,1.13374784,2630.2,2630.1,27.02429]
[1749017079970,1.13374784,2630.2,2630.1,26.2644]
[1749017080768,1.89361784,2630.2,2630.1,26.2614]
[1749017081569,1.89458545,2630.2,2630.1,26.2614]
[1749017082967,1.89458545,2630.2,2630.1,8.9274]
[1749017083271,1.89458545,2630.2,2630.1,26.2614]
[1749017085570,1.89641342,2630.2,2630.1,26.2614]
[1749017086979,1.13654342,2630.2,2630.1,26.2614]
[1749017087280,1.89641342,2630.2,2630.1,26.2614]
[1749017089679,1.89743977,2630.2,2630.1,26.2614]
[1749017090080,1.89743977,2630.2,2630.1,23.0536]
[1749017090277,1.96448579,2630.2,2630.1,23.0536]
[1749017092481,1.96448579,2630.2,2630.1,21.792]
[1749017093675,1.96457691,2630.2,2630.1,21.792]
[1749017094293,1.20470691,2630.2,2630.1,23.78649]
[1749017094480,1.13766089,2630.2,2630.1,23.78649]
[1749017095476,1.20470691,2630.2,2630.1,23.78649]
[1749017098086,1.96457691,2630.2,2630.1,23.0266]
[1749017099892,1.20470691,2630.2,2630.1,23.78649]
[1749017100993,1.20482785,2630.2,2630.1,23.78649]
[1749017103292,1.96465754,2630.2,2630.1,23.0266]
[1749017103487,1.20478754,2630.2,2630.1,23.0256]
[1749017104293,1.20487451,2630.2,2630.1,5.6926]
[1749017104589,1.20487451,2630.2,2630.1,23.0256]
[1749017104989,1.96474451,2630.2,2630.1,23.0246]
[1749017106190,1.20487451,2630.2,2630.1,23.78449]
[1749017106791,1.20487451,2630.2,2630.1,23.0246]
[1749017106992,1.20487451,2630.2,2630.1,23.78449]
[1749017107187,1.96474451,2630.2,2630.1,23.0246]
[1749017107794,1.20487451,2630.2,2630.1,23.78449]
[1749017108190,1.20487451,2630.2,2630.1,23.0246]
[1749017108397,1.20509635,2630.2,2630.1,23.78449]
[1749017110289,1.20509635,2630.2,2630.1,23.78549]
[1749017111189,1.20509635,2630.2,2630.1,21.789]
[1749017111488,1.20509635,2630.2,2630.1,22.54889]
[1749017112300,0.06704602,2630.2,2630.1,22.54889]
[1749017112494,0.06704602,2630.2,2630.1,21.789]
[1749017112495,1.20590825,2630.2,2630.1,21.789]
[1749017112700,1.80930825,2630.2,2630.1,21.789]
[1749017112995,2.56917825,2630.2,2630.1,21.789]
[1749017113502,1.80930825,2630.2,2630.1,22.54889]
[1749017113798,0.75989,2630.1,2630.0,5.299]
[1749017113998,1.89875223,2630.1,2630.0,22.63]
[1749017114192,1.89875223,2630.1,2630.0,20.5388]
[1749017114601,1.89930328,2630.1,2630.0,20.5388]
[1749017115101,1.13941328,2630.1,2630.0,21.29872]
[1749017115696,1.13941328,2630.1,2630.0,20.5388]
[1749017116503,1.89896427,2630.1,2630.0,3.2078]
[1749017116798,1.89896427,2630.1,2630.0,20.5388]
[1749017116989,3.11016427,2630.1,2630.0,20.5388]
[1749017119105,3.11016427,2630.1,2630.0,20.5388]
[1749017120202,3.11016427,2630.1,2630.0,3.2078]
[1749017120402,0.75992,2630.0,2629.9,17.33770765]
[1749017120706,3.77447787,2630.0,2629.9,17.33770765]
[1749017121899,2.53867787,2630.0,2629.9,17.33770765]
[1749017124609,2.53745928,2630.0,2629.9,17.33770765]
[1749017128497,1.40082,2630.0,2629.9,17.33770765]
[1749017128804,2.53775317,2630.0,2629.9,17.33770765]
[1749017132705,2.53777116,2630.0,2629.9,17.33770765]
[1749017136617,1.40082,2630.0,2629.9,17.33770765]
[1749017136808,2.53791924,2630.0,2629.9,17.33770765]
[1749017137815,2.53791924,2630.0,2629.9,0.00570765]
[1749017140715,2.53851071,2630.0,2629.9,0.00570765]
[1749017144808,2.53996603,2630.0,2629.9,0.00570765]
[1749017148818,1.40082,2630.0,2629.9,0.00570765]
[1749017149125,2.54011465,2630.0,2629.9,0.00570765]
[1749017152823,2.53983163,2630.0,2629.9,0.00570765]
[1749017153912,1.89893163,2630.0,2629.9,0.00570765]
[1749017155219,1.96597765,2630.0,2629.9,0.00570765]
[1749017156325,1.89893163,2630.0,2629.9,0.00570765]
[1749017160626,1.89901902,2630.0,2629.9,0.00570765]
[1749017162129,1.89901902,2630.0,2629.9,1.24460765]
[1749017163523,1.89904752,2630.0,2629.9,1.24460765]
[1749017165430,1.96609354,2630.0,2629.9,1.24460765]
[1749017166329,1.96609354,2630.0,2629.9,0.00570765]
[1749017167524,1.9663909,2630.0,2629.9,0.00570765]
[1749017169534,1.89934488,2630.0,2629.9,0.00570765]
[1749017169833,6.13942488,2630.0,2629.2,5.7575]
[1749017170025,0.76013,2629.3,2629.2,5.7575]
[1749017170225,1.89955488,2629.3,2629.2,1.3015]
[1749017170435,0.76018,2629.1,2629.0,3.2078]
[1749017170636,1.89960488,2629.1,2629.0,3.2078]
[1749017171435,1.89801645,2629.1,2629.0,3.2078]
[1749017174738,1.89500134,2629.1,2629.0,3.2078]
[1749017175335,1.89496947,2629.1,2629.0,3.2078]
[1749017177542,1.89496947,2629.1,2629.0,4.4651]
[1749017178133,1.89496947,2629.1,2629.0,3.2078]
[1749017179246,0.76018,2629.1,2629.0,3.2078]
[1749017179936,1.89310342,2629.1,2629.0,3.2078]
[1749017183140,1.89310342,2629.1,2629.0,4.5171]
[1749017185740,1.13292342,2629.1,2629.0,4.5171]
[1749017185943,0.4285,2629.3,2629.2,0.76015]
[1749017189246,0.4285,2629.3,2629.2,5.76015]
[1749017192352,0.4285,2629.3,2629.2,6.40685]
[1749017194847,0.49554602,2629.3,2629.2,6.40685]
[1749017198253,1.2737,2630.2,2629.6,0.76003]
[1749017198452,1.2737,2630.2,2629.7,26.9196]
[1749017198453,0.75998,2629.8,2629.7,26.9196]
[1749017198644,1.8892616,2629.8,2629.7,26.9196]
[1749017199356,0.76007,2629.5,2629.4,3.2078]
[1749017199562,1.8893501,2629.5,2629.4,3.2078]
[1749017200357,1.8893501,2629.5,2629.4,20.5328]
[1749017201658,1.1292801,2629.5,2629.4,20.5328]
[1749017201856,1.1292801,2629.5,2629.4,21.7921]
[1749017202058,1.1292801,2629.5,2629.4,22.5522]
[1749017202357,1.1292801,2629.5,2629.4,21.7921]
[1749017202658,1.1292801,2629.5,2629.4,22.5522]
[1749017202957,1.1292801,2629.5,2629.4,21.7921]
[1749017203557,1.12949115,2629.5,2629.4,22.5522]
[1749017204753,1.12949115,2629.5,2629.4,5.2272]
[1749017204952,1.88956115,2629.5,2629.4,20.5318]
[1749017205158,1.88956115,2629.5,2629.4,3.2078]
[1749017205359,1.88956115,2629.5,2629.4,20.5318]
[1749017208059,1.88956115,2629.5,2629.4,21.2919]
[1749017208662,1.88956115,2629.5,2629.4,20.5318]
[1749017209962,1.95660717,2629.5,2629.4,20.5318]
[1749017210261,1.95660717,2629.5,2629.4,17.324]
[1749017211563,1.95750003,2629.5,2629.4,17.324]
[1749017212266,1.95750003,2629.5,2629.3,8.41891]
[1749017212461,1.13038401,2629.4,2629.3,8.41891]
[1749017212668,1.13038401,2629.4,2629.3,25.74291]
[1749017216981,1.13038401,2629.4,2629.3,22.53511]
[1749017217176,1.13038401,2629.4,2629.3,25.74291]
[1749017219681,1.1321927,2629.4,2629.3,25.74291]
[1749017222285,1.13256175,2629.4,2629.3,25.74291]
[1749017225191,1.19960777,2629.4,2629.3,25.74291]
[1749017226290,1.20048801,2629.4,2629.3,25.74291]
[1749017226693,1.20048801,2629.4,2629.3,27.03821]
[1749017227594,1.20048801,2629.4,2629.3,27.67011]
[1749017230295,1.20037506,2629.4,2629.3,27.67011]
[1749017233590,1.20037506,2629.4,2629.3,24.46231]
[1749017233798,1.20037506,2629.4,2629.3,27.67011]
[1749017234190,0.06704602,2629.4,2629.3,27.67011]
[1749017234392,1.20026359,2629.4,2629.3,27.67011]
[1749017234893,1.20033421,2629.4,2629.3,27.67011]
[1749017237293,1.20033421,2629.4,2629.3,24.46231]
[1749017237602,1.20033421,2629.4,2629.3,27.67011]
[1749017239996,1.20033421,2629.4,2629.3,10.34611]
[1749017240198,1.20033421,2629.4,2629.3,27.66411]
[1749017242402,1.20279046,2629.4,2629.3,10.34611]
[1749017242604,1.20279046,2629.4,2629.3,27.66311]
[1749017246306,0.06704602,2629.4,2629.3,27.66311]
[1749017246501,1.20276477,2629.4,2629.3,27.66311]
[1749017247003,1.20276477,2629.4,2629.3,7.6588]
[1749017247201,1.96286477,2629.4,2629.3,24.9758]
[1749017248094,1.96286477,2629.4,2629.3,7.6588]
[1749017248294,0.76013,2629.3,2629.2,1.3009]
[1749017248509,3.20454875,2629.3,2629.2,18.6169]
[1749017248708,3.20454875,2629.3,2629.2,17.316]
[1749017249808,3.20454875,2629.3,2629.2,17.317]
[1749017250211,3.19996766,2629.3,2629.2,17.317]
[1749017250505,1.13113766,2629.3,2629.2,18.07715]
[1749017254010,1.13113766,2629.3,2629.2,19.32845]
[1749017254216,0.06704602,2629.4,2629.3,0.76013]
[1749017254412,1.19674978,2629.4,2629.3,3.96793]
[1749017254611,1.12970376,2629.4,2629.3,3.96793]
[1749017258119,0.633,2629.5,2629.4,0.7601]
[1749017258313,0.633,2629.5,2629.4,5.2081]
[1749017258314,1.76270927,2629.5,2629.4,5.2081]
[1749017261218,1.76270927,2629.5,2629.4,4.448]
[1749017261419,1.76270927,2629.5,2629.1,0.6411]
[1749017261720,1.13004234,2629.4,2629.3,3.2078]
[1749017261921,1.89014234,2629.4,2629.3,3.2078]
[1749017262216,1.13004234,2629.4,2629.3,20.5228]
[1749017262413,1.13004234,2629.4,2629.3,3.2078]
[1749017262612,1.13004234,2629.4,2629.3,20.5228]
[1749017263725,1.13004234,2629.4,2629.3,21.28293]
[1749017266322,0.633,2629.5,2629.3,21.28293]
[1749017266514,1.13018826,2629.4,2629.3,21.28293]
[1749017268022,1.13018826,2629.4,2629.3,3.2078]
[1749017268215,1.13018826,2629.4,2629.3,20.5218]
[1749017268411,1.89028826,2629.4,2629.3,20.5218]
[1749017268616,1.13018826,2629.4,2629.3,20.5218]
[1749017268817,1.13018826,2629.4,2629.3,21.28193]
[1749017269013,1.89028826,2629.4,2629.3,21.28193]
[1749017269216,1.90036,2629.3,2628.9,3.2078]
[1749017269426,0.76021,2629.0,2628.9,3.2078]
[1749017269619,1.89039826,2629.0,2628.9,3.2078]
[1749017270325,1.88939611,2629.0,2628.9,3.2078]
[1749017271426,1.88939611,2629.0,2628.9,20.5228]
[1749017274119,1.88939611,2629.0,2628.9,3.2078]
[1749017274324,0.76024,2628.9,2628.8,18.62280765]
[1749017274524,0.76027,2628.8,2628.7,4.446]
[1749017274821,0.76027,2628.8,2628.7,21.762]
[1749017274822,1.88847181,2628.8,2628.7,21.762]
[1749017275618,1.88847181,2628.8,2628.7,4.446]
[1749017275822,1.88847181,2628.8,2628.7,21.762]
[1749017278227,0.76027,2628.8,2628.7,4.446]
[1749017278427,0.7603,2628.7,2628.6,3.2078]
[1749017278630,0.76033,2628.6,2628.5,0.00570765]
[1749017278822,2.50004157,2628.6,2628.5,0.00570765]
[1749017279024,2.50004157,2628.6,2628.5,17.32170765]
[1749017279330,2.50004157,2628.6,2628.5,0.00570765]
[1749017281033,5.70784157,2628.6,2628.5,0.00570765]
[1749017281629,0.76047,2628.1,2628.0,4.447]
[1749017281931,1.88728157,2628.1,2628.0,21.764]
[1749017282125,1.88728157,2628.1,2628.0,17.317]
[1749017282528,6.12681157,2628.1,2627.4,4.15462058]
[1749017282729,0.76065,2627.5,2627.4,21.173]
[1749017283124,1.88746157,2627.5,2627.4,20.5248]
[1749017283327,1.88746157,2627.5,2627.4,3.2078]
[1749017283539,1.88746157,2627.5,2627.4,20.5248]
[1749017283733,1.88746157,2627.5,2627.4,3.2078]
[1749017284532,0.76064,2627.6,2627.4,3.2078]
[1749017284729,1.12214422,2627.5,2627.4,5.23788]
[1749017284926,1.90096,2628.5,2627.4,3.2078]
[1749017284927,1.9789,2628.4,2627.4,3.2078]
[1749017285138,0.7605,2628.0,2627.8,0.76055]
[1749017285438,0.7605,2628.0,2627.9,0.6486]
[1749017285938,1.88297265,2628.0,2627.9,0.6486]
[1749017288241,0.76053,2627.9,2627.8,17.32]
[1749017288436,1.88300265,2627.9,2627.8,17.32]
[1749017288643,1.8831283,2627.9,2627.8,17.32]
[1749017289740,1.8831283,2627.9,2627.8,18.70846]
[1749017290338,1.1225983,2627.9,2627.8,18.70846]
[1749017290638,1.8831283,2627.9,2627.8,17.9479]
[1749017292741,1.88346083,2627.9,2627.8,17.9479]
[1749017293940,1.88346083,2627.9,2627.8,18.70846]
[1749017294442,1.88346083,2627.9,2627.8,17.9479]
[1749017294639,0.76056,2627.8,2627.7,3.2078]
[1749017294841,0.76068,2627.4,2627.3,3.8698]
[1749017296831,1.88437728,2627.4,2627.3,3.8698]
[1749017298931,1.12369728,2627.4,2627.3,5.1072]
[1749017299338,1.88437728,2627.4,2627.3,5.1072]
[1749017300231,1.12369728,2627.4,2627.3,5.1072]
[1749017301337,1.12369728,2627.4,2627.3,5.8679]
[1749017301535,0.00570765,2627.6,2627.5,0.76065]
[1749017303238,1.13177164,2627.6,2627.5,0.76065]
[1749017307848,1.13177164,2627.6,2627.4,2.02896]
[1749017308042,1.12606399,2627.5,2627.4,2.02896]
[1749017308643,1.12909066,2627.5,2627.4,19.35196]
[1749017311346,1.12909066,2627.5,2627.4,18.5913]
[1749017312351,1.88974066,2627.5,2627.4,1.2683]
[1749017312551,1.13025475,2627.5,2627.4,18.5913]
[1749017312846,1.13025475,2627.5,2627.4,19.35198]
[1749017313854,1.13028248,2627.5,2627.4,19.35198]
[1749017314553,1.13028248,2627.5,2627.4,18.5913]
[1749017314750,1.13028248,2627.5,2627.4,19.35198]
[1749017314953,1.13028248,2627.5,2627.4,18.5913]
[1749017315253,1.13028248,2627.5,2627.4,19.35198]
[1749017316147,1.89093248,2627.5,2627.4,18.5913]
[1749017316549,1.13028248,2627.5,2627.4,17.322]
[1749017316751,1.78108248,2627.5,2627.4,17.322]
[1749017316950,2.54174248,2627.5,2627.4,17.322]
[1749017317957,1.78108248,2627.5,2627.4,18.08268]
[1749017318145,1.78108248,2627.5,2627.4,17.322]
[1749017319255,2.54173248,2627.5,2627.4,17.322]
[1749017319465,1.78108248,2627.5,2627.4,17.322]
[1749017320154,1.78108248,2627.5,2627.3,4.63048]
[1749017320356,1.13028248,2627.4,2627.3,5.2035]
[1749017320552,0.76068,2627.4,2627.3,9.6505]
[1749017320757,1.89129091,2627.4,2627.3,26.9725]
[1749017320960,1.88558161,2627.4,2627.3,26.9725]
[1749017321156,1.88558161,2627.4,2627.3,3.2078]
[1749017321459,2.53098161,2627.4,2627.3,24.9768]
[1749017322761,1.13061091,2627.4,2627.3,25.7375]
[1749017322961,1.13061091,2627.4,2627.3,26.9946]
[1749017324362,1.89129091,2627.4,2627.3,26.2339]
[1749017324549,1.89129091,2627.4,2627.3,24.9768]
[1749017325970,0.76068,2627.4,2627.3,24.9768]
[1749017327067,1.89135885,2627.4,2627.3,24.9768]
[1749017327467,1.89135885,2627.4,2627.3,7.6548]
[1749017327664,1.89135885,2627.4,2627.3,24.9768]
[1749017328966,1.89117995,2627.4,2627.3,24.9768]
[1749017331467,1.89117995,2627.4,2627.3,24.9778]
[1749017331670,1.89117995,2627.4,2627.3,3.2078]
[1749017331870,1.89117995,2627.4,2627.3,24.9758]
[1749017332970,1.89115399,2627.4,2627.3,24.9758]
[1749017336977,1.89107417,2627.4,2627.3,24.9758]
[1749017339481,1.89107417,2627.4,2627.3,7.6538]
[1749017339775,1.89107417,2627.4,2627.3,24.9758]
[1749017340169,1.89107417,2627.4,2627.3,7.6538]
[1749017340368,1.89107417,2627.4,2627.3,4.446]
[1749017340571,3.14417417,2627.4,2627.3,4.446]
[1749017340875,3.14431102,2627.4,2627.3,4.446]
[1749017341771,3.14431102,2627.4,2627.2,0.00570765]
[1749017341772,0.7607,2627.3,2627.2,0.00570765]
[1749017342079,2.51153102,2627.3,2627.2,0.00570765]
[1749017342280,3.83973102,2627.3,2627.2,0.00570765]
[1749017343682,3.83955435,2627.3,2627.2,0.00570765]
[1749017344075,8.83955435,2627.3,2627.2,0.00570765]
[1749017344684,2.51135435,2627.3,2627.2,0.00570765]
[1749017345979,1.13035435,2627.3,2627.2,3.21350765]
[1749017346175,1.13035435,2627.3,2627.2,7.66050765]
[1749017346371,1.89105435,2627.3,2627.2,3.21350765]
[1749017346592,1.89105435,2627.3,2627.2,0.00570765]
[1749017346785,1.89105435,2627.3,2626.9,24.60210765]
[1749017346786,0.76079,2627.0,2626.9,24.60210765]
[1749017346979,1.89114435,2627.0,2626.9,24.60210765]
[1749017347175,0.76079,2627.0,2626.9,24.60210765]
[1749017347381,1.89049184,2627.0,2626.9,25.83190765]
[1749017347775,1.12970184,2627.0,2626.9,26.59272765]
[1749017347981,1.12970184,2627.0,2626.9,25.83190765]
[1749017348278,1.89049184,2627.0,2626.9,25.83190765]
[1749017350480,1.12970184,2627.0,2626.9,25.83190765]
[1749017350976,1.12970184,2627.0,2626.9,26.59272765]
[1749017351181,1.1293551,2627.0,2626.9,26.59272765]
[1749017352289,1.1293551,2627.0,2626.9,25.83190765]
[1749017352594,1.1293551,2627.0,2626.9,31.59272765]
[1749017353677,1.1293551,2627.0,2626.9,30.83190765]
[1749017353884,1.1293551,2627.0,2626.9,31.59272765]
[1749017355187,1.12912832,2627.0,2626.9,32.35282]
[1749017355491,1.12912832,2627.0,2626.9,27.35282]
[1749017359187,0.76067,2627.5,2627.2,0.76073]
[1749017359388,1.1293908,2627.4,2627.3,5.0587]
[1749017359588,1.1293908,2627.4,2627.3,8.2665]
[1749017359795,1.1293908,2627.4,2627.3,9.0272]
[1749017363300,0.00570765,2627.6,2627.4,0.76066]
[1749017363596,1.12903722,2627.5,2627.4,0.76066]
[1749017365197,1.12903722,2627.5,2627.3,8.2665]
[1749017365500,1.12903722,2627.4,2627.3,9.0272]
[1749017367291,0.76632765,2627.6,2627.4,0.76067]
[1749017367504,1.12895114,2627.5,2627.4,0.76067]
[1749017368495,1.12891285,2627.5,2627.3,9.02719]
[1749017368695,1.12891285,2627.4,2627.3,5.81939]
[1749017368896,1.12891285,2627.4,2627.3,9.02719]
[1749017371502,1.12878837,2627.4,2627.3,9.0272]
[1749017375209,1.19583439,2627.4,2627.3,9.0272]
[1749017378910,1.19583439,2627.4,2627.3,10.2983]
[1749017379507,1.19721628,2627.4,2627.3,10.2983]
[1749017382323,1.13017026,2627.4,2627.3,10.2983]
[1749017383513,1.19721628,2627.4,2627.3,10.2983]
[1749017383720,1.19781328,2627.4,2627.3,10.2983]
[1749017387623,1.19822336,2627.4,2627.3,10.2983]
[1749017391329,1.19822336,2627.4,2627.3,9.0272]
[1749017391630,1.19822336,2627.4,2627.3,8.4145]
[1749017391820,1.95890336,2627.4,2627.3,24.9728]
[1749017392123,3.88890336,2627.4,2627.3,24.9728]
[1749017392424,3.12822336,2627.4,2627.3,24.9728]
[1749017392727,3.06117734,2627.4,2627.3,24.9728]
[1749017395630,3.06104422,2627.4,2627.3,24.9728]
[1749017396433,3.06104422,2627.4,2627.3,25.7335]
[1749017396729,1.74044422,2627.4,2627.3,25.7335]
[1749017397924,1.74044422,2627.4,2627.3,24.9728]
[1749017398430,2.96374422,2627.4,2627.3,24.9728]
[1749017399133,1.8327,2627.4,2627.3,24.9728]
[1749017399836,1.73980427,2627.4,2627.3,25.7335]
[1749017402432,1.73967318,2627.4,2627.3,25.7335]
[1749017402734,1.8067192,2627.4,2627.3,25.7335]
[1749017403637,1.8067192,2627.4,2627.3,24.9728]
[1749017404437,2.5673992,2627.4,2627.3,7.6528]
[1749017404740,2.5673992,2627.4,2627.3,24.9728]
[1749017404930,3.7921992,2627.4,2627.3,24.9728]
[1749017405838,3.72515318,2627.4,2627.3,24.9728]
[1749017406026,2.96447318,2627.4,2627.3,24.9728]
[1749017406231,2.96447318,2627.4,2627.3,25.7335]
[1749017406633,1.73967318,2627.4,2627.3,25.7335]
[1749017407739,2.50035318,2627.4,2627.3,24.9728]
[1749017408039,1.73967318,2627.4,2627.3,24.9728]
[1749017408337,2.50035318,2627.4,2627.3,24.9728]
[1749017408539,1.73967318,2627.4,2627.3,24.9728]
[1749017408937,2.50035318,2627.4,2627.3,24.9728]
[1749017410237,1.37008,2627.4,2627.3,24.9728]
[1749017410535,2.49966589,2627.4,2627.3,24.9728]
[1749017410738,1.73898589,2627.4,2627.3,25.7335]
[1749017411239,2.49966589,2627.4,2627.3,24.9728]
[1749017414448,1.7389786,2627.4,2627.3,25.7335]
[1749017415042,2.4996586,2627.4,2627.3,24.9728]
[1749017415447,2.49971518,2627.4,2627.3,24.9728]
[1749017415748,2.49971518,2627.4,2627.3,4.445]
[1749017415947,2.49971518,2627.4,2627.3,21.765]
[1749017418345,2.50001226,2627.4,2627.3,21.765]
[1749017418643,1.12993226,2627.4,2627.3,25.7335]
[1749017418849,1.12993226,2627.4,2627.3,27.0473]
[1749017419049,1.89061226,2627.4,2627.3,24.9728]
[1749017419849,1.89061226,2627.4,2627.3,21.765]
[1749017421444,1.89061226,2627.4,2627.3,22.976]
[1749017422450,1.89126583,2627.4,2627.3,22.976]
[1749017424850,1.13058583,2627.4,2627.3,22.976]
[1749017425057,1.13058583,2627.4,2627.3,26.9445]
[1749017425547,1.13058583,2627.4,2627.3,27.5734]
[1749017426252,1.13058583,2627.4,2627.3,26.8127]
[1749017426454,1.12123304,2627.4,2627.3,26.8127]
[1749017427042,1.12123304,2627.4,2627.3,27.5734]
[1749017427455,1.13652215,2627.4,2627.3,27.5734]
[1749017427654,1.13652215,2627.4,2627.3,26.8127]
[1749017428654,1.90922906,2627.4,2627.3,26.8127]
[1749017428856,1.14855906,2627.4,2627.3,26.8127]
[1749017429056,1.21560508,2627.4,2627.3,26.8127]
[1749017430549,1.21577487,2627.4,2627.3,26.8127]
[1749017431951,1.21577487,2627.4,2627.3,27.5734]
[1749017432149,1.21577487,2627.4,2627.3,26.8127]
[1749017432550,1.21577487,2627.4,2627.3,23.6049]
[1749017432751,1.21577487,2627.4,2627.3,26.8127]
[1749017433154,1.21577487,2627.4,2627.3,27.5734]
[1749017433654,0.3324847,2627.6,2627.5,0.76065]
[1749017434058,4.5101,2628.5,2627.7,1.90142]
[1749017434252,1.3023,2628.5,2628.2,0.76043]
[1749017434554,2.06266,2628.5,2628.3,22.3892]
[1749017434754,0.76039,2628.4,2628.3,22.3892]
[1749017442558,0.76044,2628.2,2628.1,3.21350765]
[1749017442960,5.76044,2628.2,2628.1,0.00570765]
[1749017443458,7.07364,2628.2,2628.1,0.00570765]
[1749017444267,7.07364,2628.2,2628.1,7.65e-06]
[1749017445467,8.20428321,2628.2,2628.1,7.65e-06]
[1749017446277,8.20436911,2628.2,2628.1,7.65e-06]
[1749017449079,0.7605,2628.0,2627.9,7.65e-06]
[1749017449277,5.09902911,2628.0,2627.9,7.65e-06]
[1749017449485,10.09902911,2628.0,2627.9,7.65e-06]
[1749017449679,11.99172911,2628.0,2627.9,7.65e-06]
[1749017450275,11.99164654,2628.0,2627.9,7.65e-06]
[1749017452385,6.99164654,2628.0,2627.9,7.65e-06]
[1749017454275,6.99133151,2628.0,2627.9,7.65e-06]
[1749017455491,0.76056,2627.8,2627.7,5.3e-06]
[1749017455782,0.76079,2627.0,2626.9,4.442]
[1749017455971,1.89112151,2627.0,2626.9,4.442]
[1749017456374,0.76085,2626.8,2626.7,0.6616]
[1749017456586,0.76085,2626.8,2626.6,4.8224]
[1749017456587,0.76088,2626.7,2626.6,4.8224]